bitfinex/quotes_SOLUSD_20241218
["timestamp","ask_amount","ask_price","bid_price","bid_amount"]
[1734509775659,7.23205091,216.07,216.0,7.23205091]
[1734509775831,0.5849689,216.06,216.0,7.23205091]
[1734509776357,0.5849689,216.06,216.0,0.12549]
[1734509776573,7.23205091,216.05,215.99,10.0]
[1734509776734,56.64820364,216.15,215.99,10.0]
[1734509776735,7.23205091,216.02,215.99,10.0]
[1734509776932,0.5849689,216.01,215.99,10.0]
[1734509778040,7.23205091,216.0,215.99,10.0]
[1734509781144,7.81701981,216.0,215.99,10.0]
[1734509781343,7.81701981,216.0,215.99,2.2058]
[1734509781558,7.81701981,216.0,215.99,0.0001]
[1734509783768,20.5849689,216.0,215.99,0.0001]
[1734509783938,27.81701981,216.0,215.99,0.0001]
[1734509784255,7.81701981,216.0,215.99,0.0001]
[1734509784674,0.5849689,216.0,215.99,0.0001]
[1734509784878,1.85324445,216.07,215.99,0.0001]
[1734509784879,7.23205091,216.01,215.99,0.0001]
[1734509785059,7.23205091,216.04,215.99,0.0001]
[1734509785257,0.5849689,216.06,215.99,0.0001]
[1734509785479,7.23205091,216.05,215.99,0.0001]
[1734509785771,7.23205091,216.05,215.98,5.44515091]
[1734509785772,0.5849689,216.04,215.98,5.44515091]
[1734509785961,0.5849689,216.04,215.98,11.30779804]
[1734509786986,11.30779804,216.09,216.02,11.30779804]
[1734509787191,1.5321,216.16,215.98,0.69439739]
[1734509787192,11.89276694,216.14,216.07,11.30779804]
[1734509787371,0.5849689,216.14,216.08,11.30779804]
[1734509787549,11.30779804,216.17,216.1,11.30779804]
[1734509787749,0.5849689,216.16,216.1,11.30779804]
[1734509788580,11.89276694,216.16,216.1,11.30779804]
[1734509789867,11.30779804,216.15,216.09,0.12549]
[1734509790392,0.5849689,216.14,216.09,0.12549]
[1734509790757,11.30779804,216.15,216.09,0.12549]
[1734509791132,0.5849689,216.14,216.09,0.12549]
[1734509791259,11.30779804,216.15,216.09,0.12549]
[1734509791603,11.30779804,216.17,216.1,11.30779804]
[1734509791752,0.5849689,216.16,216.1,11.30779804]
[1734509792471,11.89276694,216.16,216.09,11.43328804]
[1734509795285,0.5849689,216.16,216.1,11.30779804]
[1734509795459,11.30779804,216.17,216.1,11.30779804]
[1734509795958,11.30779804,216.15,216.08,17.89069804]
[1734509796159,11.30779804,216.17,216.1,11.30779804]
[1734509796360,1.5321,216.22,216.11,11.30779804]
[1734509796361,11.30779804,216.18,216.11,11.30779804]
[1734509797515,11.30779804,216.21,216.14,11.30779804]
[1734509797658,11.30779804,216.24,216.18,11.30779804]
[1734509797974,1.5767,216.28,216.19,11.30779804]
[1734509797975,11.30779804,216.26,216.19,11.30779804]
[1734509798188,2.217265,216.28,216.12,0.69381428]
[1734509798189,0.640565,216.25,216.2,11.30779804]
[1734509798554,0.640565,216.25,216.21,11.30779804]
[1734509798773,0.640565,216.27,216.21,11.30779804]
[1734509799782,11.30779804,216.3,216.23,11.30779804]
[1734509799993,0.640565,216.29,216.24,11.30779804]
[1734509800693,11.30779804,216.33,216.26,11.30779804]
[1734509800984,0.640565,216.32,216.26,11.30779804]
[1734509802276,0.640565,216.32,216.27,11.30779804]
[1734509802485,11.30779804,216.31,216.24,11.30779804]
[1734509802679,11.94836304,216.3,216.23,11.30779804]
[1734509802879,11.30779804,216.28,216.21,11.30779804]
[1734509803096,11.30779804,216.29,216.22,11.30779804]
[1734509803296,0.640565,216.28,216.23,11.30779804]
[1734509803711,11.94836304,216.28,216.21,11.43328804]
[1734509804779,11.30779804,216.27,216.21,11.43328804]
[1734509804975,11.30779804,216.27,216.2,6.2924]
[1734509804976,0.640565,216.26,216.2,17.60019804]
[1734509805184,0.640565,216.26,216.04,25.19399804]
[1734509805185,11.30779804,216.23,216.15,6.0541]
[1734509805405,11.94836304,216.22,216.15,17.36189804]
[1734509806791,0.640565,216.22,216.16,11.30779804]
[1734509808891,11.94836304,216.22,216.16,11.30779804]
[1734509810136,0.640565,216.22,216.17,11.30779804]
[1734509811403,0.640565,216.22,216.16,11.30779804]
[1734509812912,0.640565,216.22,216.18,1.24]
[1734509813106,0.640565,216.23,216.18,1.24]
[1734509815705,35.08468204,216.22,216.18,1.24]
[1734509815905,11.94836304,216.21,216.18,1.24]
[1734509816327,0.640565,216.21,216.18,1.24]
[1734509820631,0.640565,216.22,216.18,1.24]
[1734509821625,24.417449,216.23,216.18,1.24]
[1734509821931,11.30779804,216.22,216.18,1.24]
[1734509822155,0.640565,216.22,216.18,1.24]
[1734509823503,31.00292709,216.21,216.18,1.24]
[1734509823810,0.640565,216.2,216.18,1.24]
[1734509824428,7.86660809,216.2,216.18,1.24]
[1734509824633,7.22604309,216.19,216.18,1.24]
[1734509825035,31.00292709,216.19,216.18,1.24]
[1734509825708,31.00292709,216.19,216.08,7.22604309]
[1734509825919,7.22604309,216.14,216.07,7.22604309]
[1734509826131,0.640565,216.13,216.07,7.22604309]
[1734509826347,7.86660809,216.13,216.06,7.22604309]
[1734509827633,7.22604309,216.09,216.02,7.22604309]
[1734509827845,0.640565,216.08,216.02,7.22604309]
[1734509828131,11.94442787,216.08,216.0,11.30386287]
[1734509828331,11.94442787,216.08,216.01,11.30386287]
[1734509828516,11.94442787,216.08,216.0,11.30386287]
[1734509829037,11.30386287,216.06,215.99,11.30386287]
[1734509829249,20.0,216.12,216.01,11.30386287]
[1734509829250,0.640565,216.05,216.01,11.30386287]
[1734509829562,20.0,216.12,216.01,11.30386287]
[1734509829563,11.30386287,216.08,216.01,11.30386287]
[1734509829834,0.640565,216.07,216.01,11.30386287]
[1734509830925,11.94442787,216.07,216.0,11.30386287]
[1734509831234,11.30386287,216.02,215.95,6.6375]
[1734509831437,0.640565,216.01,215.95,6.6375]
[1734509831611,11.30386287,215.99,215.92,11.30386287]
[1734509831811,0.640565,215.98,215.92,11.30386287]
[1734509832017,0.640565,215.98,215.93,11.30386287]
[1734509832213,0.640565,215.98,215.92,11.30386287]
[1734509832519,0.640565,215.98,215.91,17.90036287]
[1734509833611,11.30386287,215.97,215.91,6.5965]
[1734509833820,0.640565,215.96,215.91,6.5965]
[1734509834340,0.640565,215.96,215.92,11.30386287]
[1734509834520,11.94442787,215.98,215.91,17.90036287]
[1734509834720,0.640565,215.97,215.91,17.90036287]
[1734509834919,11.94442787,215.97,215.91,6.5965]
[1734509835114,11.94442787,215.97,215.9,11.30386287]
[1734509835316,11.30386287,215.96,215.89,11.86199837]
[1734509835524,11.30386287,216.04,215.89,11.86199837]
[1734509835525,11.94442787,215.95,215.89,0.5581355]
[1734509835723,0.640565,215.95,215.89,11.86199837]
[1734509835924,11.94442787,215.95,215.89,0.5581355]
[1734509836431,0.640565,215.95,215.89,11.86199837]
[1734509836628,11.30386287,215.96,215.89,11.86199837]
[1734509836836,0.640565,215.95,215.89,11.86199837]
[1734509837728,11.94442787,215.95,215.89,0.5581355]
[1734509838319,0.640565,215.95,215.89,11.86199837]
[1734509838525,0.640565,215.95,215.9,11.30386287]
[1734509838729,0.640565,215.96,215.9,11.30386287]
[1734509839830,11.94442787,215.96,215.89,11.86199837]
[1734509840226,11.30386287,215.95,215.89,0.5581355]
[1734509840424,0.640565,215.94,215.89,0.5581355]
[1734509840949,0.640565,215.94,215.91,1.25]
[1734509841545,11.30386287,215.95,215.91,1.25]
[1734509841726,0.640565,215.94,215.91,1.25]
[1734509842344,11.30386287,215.95,215.91,1.25]
[1734509842547,0.640565,215.94,215.91,1.25]
[1734509842948,0.640565,215.97,215.92,11.30386287]
[1734509843150,0.640565,215.97,215.93,1.25]
[1734509843151,11.94442787,215.97,215.93,1.25]
[1734509843721,0.640565,215.97,215.93,1.25]
[1734509843923,11.94442787,215.98,215.93,1.25]
[1734509844121,0.640565,215.98,215.93,1.25]
[1734509844562,0.640565,215.98,215.93,12.55386287]
[1734509845053,6.5999,216.06,215.93,12.55386287]
[1734509845054,0.640565,216.05,215.97,11.30386287]
[1734509845273,0.640565,216.05,215.99,11.30386287]
[1734509845561,0.640565,216.05,216.0,11.30386287]
[1734509845946,0.640565,216.06,216.01,11.30386287]
[1734509846325,11.30386287,216.05,215.98,11.30386287]
[1734509846521,11.94442787,216.04,215.97,17.48426287]
[1734509847029,11.30386287,216.02,215.95,11.30386287]
[1734509847245,11.94442787,216.01,215.94,11.30386287]
[1734509847539,0.640565,216.01,215.96,11.30386287]
[1734509847749,0.640565,216.02,215.96,11.30386287]
[1734509847957,0.640565,216.02,215.98,11.30386287]
[1734509848158,11.30386287,216.07,216.0,11.30386287]
[1734509848340,0.640565,216.06,216.0,11.30386287]
[1734509848922,11.94442787,216.06,215.99,11.30386287]
[1734509849436,0.640565,216.06,216.0,11.30386287]
[1734509851650,11.94442787,216.06,215.99,11.30386287]
[1734509852926,0.640565,216.06,216.0,11.30386287]
[1734509853132,11.94442787,216.06,215.99,11.30386287]
[1734509854536,11.30386287,216.05,215.98,11.30386287]
[1734509854737,11.30386287,216.03,215.96,11.30386287]
[1734509854960,11.30386287,216.01,215.94,11.30386287]
[1734509855158,0.640565,216.0,215.94,11.30386287]
[1734509855457,11.30386287,215.99,215.93,1.25]
[1734509855639,0.640565,215.98,215.93,1.25]
[1734509855839,11.30386287,215.97,215.93,1.25]
[1734509856048,0.640565,215.96,215.93,1.25]
[1734509857466,11.30386287,215.95,215.93,1.25]
[1734509857647,0.640565,215.94,215.93,1.25]
[1734509858566,35.72131187,215.94,215.93,1.25]
[1734509863877,23.776884,215.93,215.89,0.5581355]
[1734509864040,11.30386287,215.9,215.89,0.5581355]
[1734509865663,35.08074687,215.9,215.89,0.5581355]
[1734509872044,31.02603839,215.9,215.89,0.5581355]
[1734509873340,23.776884,215.9,215.89,0.5581355]
[1734509873544,31.02603839,215.9,215.89,0.5581355]
[1734509874062,0.640565,215.92,215.89,0.5581355]
[1734509874358,7.24915439,215.93,215.89,0.5581355]
[1734509874559,0.640565,215.92,215.89,0.5581355]
[1734509874968,7.24915439,215.91,215.89,0.5581355]
[1734509875159,7.88971939,215.9,215.89,0.5581355]
[1734509875471,31.66660339,215.9,215.89,0.5581355]
[1734509876278,24.417449,215.9,215.89,0.5581355]
[1734509876579,31.66660339,215.9,215.89,0.5581355]
[1734509879059,24.417449,215.9,215.89,0.5581355]
[1734509880179,0.640565,215.9,215.89,0.5581355]
[1734509880390,7.24915439,215.93,215.89,0.5581355]
[1734509880673,0.640565,215.92,215.89,0.5581355]
[1734509881555,7.88971939,215.92,215.89,0.5581355]
[1734509882354,7.88971939,215.92,215.89,0.7281355]
[1734509882761,31.02603839,215.9,215.89,0.7281355]
[1734509883371,31.02603839,215.9,215.89,0.5581355]
[1734509884373,31.02603839,215.9,215.89,0.7281355]
[1734509889390,31.66660339,215.9,215.89,3.55e-05]
[1734509889880,20.0,215.87,215.81,6.1843]
[1734509890103,23.776884,215.85,215.81,6.1843]
[1734509890380,0.640565,215.84,215.81,6.1843]
[1734509891182,7.88971939,215.84,215.77,7.24915439]
[1734509892260,7.88971939,215.84,215.77,0.12549]
[1734509892464,7.88971939,215.84,215.77,7.37464439]
[1734509896098,7.88971939,215.84,215.76,6.0221]
[1734509896099,7.24915439,215.83,215.76,6.0221]
[1734509896277,7.24915439,215.8,215.76,6.0221]
[1734509896478,7.88971939,215.79,215.76,6.0221]
[1734509896880,0.640565,215.79,215.76,6.0221]
[1734509898394,7.88971939,215.79,215.76,6.0221]
[1734509898772,0.640565,215.79,215.76,6.0221]
[1734509899169,0.640565,215.79,215.74,1.5134]
[1734509899170,7.24915439,215.77,215.71,6.0797]
[1734509899395,0.640565,215.76,215.71,6.0797]
[1734509899901,0.640565,215.76,215.71,13.32885439]
[1734509900309,0.640565,215.77,215.71,13.32885439]
[1734509900601,0.640565,215.77,215.71,6.0797]
[1734509902570,0.640565,215.77,215.71,13.32885439]
[1734509902775,0.640565,215.77,215.72,7.24915439]
[1734509902976,0.640565,215.78,215.72,7.24915439]
[1734509903478,0.640565,215.78,215.71,13.32885439]
[1734509904777,0.640565,215.78,215.74,0.93]
[1734509906198,7.88971939,215.78,215.74,0.93]
[1734509906399,0.640565,215.78,215.74,0.93]
[1734509906595,24.417449,215.81,215.74,8.17915439]
[1734509906786,0.640565,215.81,215.75,7.37464439]
[1734509906993,7.24915439,215.84,215.77,0.12549]
[1734509907205,0.640565,215.83,215.77,7.24915439]
[1734509907403,0.640565,215.83,215.76,7.37464439]
[1734509907902,0.640565,215.83,215.77,0.93]
[1734509908404,7.88971939,215.83,215.77,0.93]
[1734509908975,7.88971939,215.83,215.76,0.12549]
[1734509909188,7.24915439,215.82,215.76,0.12549]
[1734509909388,0.640565,215.81,215.76,0.12549]
[1734509909886,7.88971939,215.81,215.73,7.24915439]
[1734509910284,7.24915439,215.79,215.74,0.93]
[1734509910499,0.640565,215.78,215.74,0.93]
[1734509910690,0.640565,215.78,215.73,0.12549]
[1734509911012,7.88971939,215.78,215.71,6.0797]
[1734509914407,0.640565,215.87,215.77,7.24915439]
[1734509915025,7.24915439,215.84,215.77,7.24915439]
[1734509915313,7.88971939,215.83,215.76,0.12549]
[1734509915617,0.640565,215.83,215.76,7.37464439]
[1734509916106,0.640565,215.83,215.73,0.12549]
[1734509916309,0.640565,215.83,215.77,7.24915439]
[1734509917718,0.640565,215.87,215.8,7.24915439]
[1734509918013,7.24915439,215.89,215.82,7.24915439]
[1734509918196,7.24915439,215.86,215.8,6.5048]
[1734509918399,0.640565,215.85,215.8,6.5048]
[1734509920006,0.640565,215.85,215.8,13.75395439]
[1734509920214,7.24915439,215.88,215.8,13.75395439]
[1734509920402,0.640565,215.87,215.81,7.37464439]
[1734509920607,7.88971939,215.89,215.82,7.24915439]
[1734509920825,7.88971939,215.89,215.81,7.37464439]
[1734509921395,7.24915439,215.88,215.81,7.37464439]
[1734509921620,0.640565,215.87,215.81,7.37464439]
[1734509921819,7.24915439,215.88,215.81,7.37464439]
[1734509921995,0.640565,215.87,215.81,7.37464439]
[1734509922297,0.640565,215.88,215.83,0.12549]
[1734509922692,0.640565,215.88,215.83,7.37464439]
[1734509922893,0.640565,215.9,215.83,7.37464439]
[1734509923189,7.88971939,215.9,215.83,0.12549]
[1734509923814,0.640565,215.9,215.83,7.24915439]
[1734509924017,20.0,215.9,215.83,7.24915439]
[1734509924224,0.640565,215.89,215.83,7.24915439]
[1734509927116,0.640565,215.92,215.86,7.24915439]
[1734509927305,7.24915439,215.94,215.87,0.12549]
[1734509927501,0.640565,215.93,215.87,7.37464439]
[1734509928503,7.24915439,215.92,215.84,0.12549]
[1734509928708,7.24915439,215.92,215.85,7.24915439]
[1734509929026,0.640565,215.98,215.87,7.37464439]
[1734509929226,7.88971939,215.98,215.91,0.12549]
[1734509930815,7.24915439,215.97,215.91,0.12549]
[1734509931137,7.24915439,216.0,215.92,7.37464439]
[1734509931431,0.640565,215.99,215.94,0.12549]
[1734509932222,0.640565,215.99,215.93,0.12549]
[1734509932413,7.88971939,215.99,215.9,0.69462412]
[1734509932620,7.24915439,215.97,215.9,7.24915439]
[1734509932824,0.640565,216.03,215.9,7.24915439]
[1734509933124,7.24915439,215.98,215.91,7.37464439]
[1734509933849,7.24915439,215.99,215.93,0.12549]
[1734509934209,0.640565,216.01,215.93,0.12549]
[1734509934210,7.24915439,216.0,215.93,0.12549]
[1734509934408,0.640565,215.99,215.93,0.12549]
[1734509934617,23.776884,216.02,215.96,0.12549]
[1734509934618,0.640565,216.02,215.96,0.12549]
[1734509934831,7.24915439,216.02,215.96,0.12549]
[1734509935630,7.24915439,215.98,215.91,7.24915439]
[1734509936426,7.24915439,215.99,215.93,0.12549]
[1734509936619,7.24915439,215.98,215.93,0.12549]
[1734509937227,7.24915439,215.98,215.9,7.24915439]
[1734509937408,7.24915439,215.95,215.89,6.4883]
[1734509938331,0.640565,215.94,215.89,6.4883]
[1734509938740,7.24915439,215.93,215.84,6.5641]
[1734509939035,7.24915439,215.91,215.84,6.5641]
[1734509939250,0.640565,215.9,215.84,6.5641]
[1734509939817,7.24915439,215.88,215.81,1.5811]
[1734509940161,7.24915439,215.87,215.82,0.12549]
[1734509940450,0.640565,215.9,215.81,8.83025439]
[1734509940451,7.24915439,215.88,215.81,8.83025439]
[1734509940619,3.40568648,215.99,215.82,0.12549]
[1734509940620,7.24915439,215.89,215.82,0.12549]
[1734509940935,0.640565,215.88,215.82,0.12549]
[1734509941636,7.88971939,215.88,215.82,0.12549]
[1734509941819,7.24915439,215.86,215.79,7.24915439]
[1734509942016,7.24915439,215.87,215.8,7.37464439]
[1734509942216,7.24915439,215.89,215.83,0.12549]
[1734509942632,0.640565,215.88,215.83,0.12549]
[1734509943050,0.640565,215.88,215.82,0.12549]
[1734509943543,7.88971939,215.88,215.81,0.12549]
[1734509944852,7.24915439,215.87,215.81,0.12549]
[1734509945140,0.640565,215.88,215.78,6.5641]
[1734509945141,7.88971939,215.86,215.79,0.12549]
[1734509945641,0.640565,215.86,215.79,7.37464439]
[1734509945946,0.640565,215.86,215.81,0.12549]
[1734509946139,0.640565,215.86,215.81,7.24915439]
[1734509946338,7.24915439,215.87,215.78,6.5641]
[1734509946542,7.24915439,215.85,215.79,0.12549]
[1734509946736,0.640565,215.84,215.79,0.12549]
[1734509948626,0.640565,215.84,215.79,7.37464439]
[1734509948844,0.640565,215.85,215.79,7.37464439]
[1734509950450,0.640565,215.85,215.8,7.24915439]
[1734509950646,23.776884,215.86,215.8,7.24915439]
[1734509950847,23.776884,215.86,215.79,0.12549]
[1734509950848,0.640565,215.85,215.79,7.37464439]
[1734509951041,23.776884,215.88,215.82,7.24915439]
[1734509951252,0.640565,215.87,215.82,7.24915439]
[1734509951964,0.640565,215.87,215.81,7.24915439]
[1734509952868,23.776884,215.86,215.79,7.24915439]
[1734509953074,0.640565,215.85,215.78,13.81325439]
[1734509953280,0.640565,215.85,215.79,7.37464439]
[1734509955100,23.776884,215.84,215.77,7.24915439]
[1734509955392,0.640565,215.83,215.77,7.24915439]
[1734509959098,0.640565,215.83,215.78,7.24915439]
[1734509959395,0.640565,215.84,215.81,7.24915439]
[1734509959596,7.24915439,215.88,215.81,7.24915439]
[1734509959798,0.640565,215.87,215.81,7.24915439]
[1734509960159,0.640565,215.87,215.83,7.24915439]
[1734509960361,1.5206,215.9,215.84,7.24915439]
[1734509960565,0.640565,215.89,215.85,7.24915439]
[1734509960959,0.640565,215.91,215.84,7.24915439]
[1734509961861,7.88971939,215.91,215.83,7.24915439]
[1734509962081,7.24915439,215.9,215.84,0.12549]
[1734509962273,0.640565,215.89,215.84,0.12549]
[1734509963179,7.24915439,215.89,215.82,7.24915439]
[1734509963487,0.640565,215.88,215.82,7.24915439]
[1734509964867,0.640565,215.88,215.83,7.24915439]
[1734509965171,24.417449,215.89,215.83,7.24915439]
[1734509967089,24.417449,215.89,215.82,7.24915439]
[1734509967462,24.417449,215.89,215.83,7.24915439]
[1734509967683,31.02603839,215.92,215.84,7.37464439]
[1734509967878,0.640565,215.91,215.84,7.37464439]
[1734509968068,7.88971939,215.91,215.84,7.37464439]
[1734509968273,7.24915439,215.9,215.83,7.24915439]
[1734509968490,0.640565,215.89,215.83,7.24915439]
[1734509968904,0.640565,215.89,215.82,6.5513]
[1734509969086,0.640565,215.89,215.82,13.80045439]
[1734509970681,0.640565,215.89,215.83,0.12549]
[1734509971402,7.88971939,215.89,215.83,0.12549]
[1734509971820,7.88971939,215.89,215.82,6.5513]
[1734509972098,7.24915439,215.87,215.8,7.24915439]
[1734509972302,0.640565,215.86,215.81,0.12549]
[1734509973123,7.24915439,215.84,215.77,13.34525439]
[1734509973334,7.24915439,215.84,215.77,6.0961]
[1734509973335,0.640565,215.83,215.77,6.0961]
[1734509973617,0.640565,215.83,215.78,0.12549]
[1734509974112,0.640565,215.83,215.77,13.34525439]
[1734509974822,0.640565,215.83,215.78,0.12549]
[1734509976498,0.640565,215.83,215.77,0.12549]
[1734509976698,7.88971939,215.84,215.77,7.37464439]
[1734509977897,7.88971939,215.84,215.75,0.12549]
[1734509978102,7.88971939,215.84,215.78,0.12549]
[1734509978730,0.640565,215.84,215.78,0.12549]
[1734509979031,0.640565,215.84,215.78,7.24915439]
[1734509979331,7.88971939,215.84,215.78,0.12549]
[1734509980310,0.640565,215.84,215.78,0.12549]
[1734509980507,7.88971939,215.84,215.78,0.12549]
[1734509981118,7.88971939,215.84,215.74,1.6279]
[1734509981316,7.24915439,215.83,215.75,7.24915439]
[1734509981517,0.640565,215.82,215.76,0.12549]
[1734509982334,7.88971939,215.84,215.78,0.12549]
[1734509982519,0.640565,215.84,215.78,7.24915439]
[1734509985216,0.640565,215.84,215.78,0.12549]
[1734509985939,0.640565,215.84,215.78,7.24915439]
[1734509988540,0.640565,215.84,215.75,0.12549]
[1734509988844,7.88971939,215.84,215.75,0.12549]
[1734509989036,7.88971939,215.84,215.78,0.12549]
[1734509989741,7.24915439,215.82,215.73,0.69511831]
[1734509989920,7.88971939,215.81,215.73,7.24915439]
[1734509990327,7.88971939,215.81,215.74,0.12549]
[1734509990714,7.24915439,215.75,215.65,6.2632]
[1734509990919,7.24915439,215.73,215.66,7.24915439]
[1734509991119,0.640565,215.72,215.66,7.24915439]
[1734509992027,0.640565,215.73,215.66,7.24915439]
[1734509992416,7.88971939,215.73,215.66,7.24915439]
[1734509992618,0.640565,215.78,215.72,0.12549]
[1734509992917,7.88971939,215.78,215.72,0.12549]
[1734509993521,7.24915439,215.77,215.69,0.12549]
[1734509993828,0.640565,215.76,215.71,0.12549]
[1734509994743,0.640565,215.76,215.69,0.12549]
[1734509994916,7.24915439,215.74,215.68,0.5581355]
[1734509995121,0.640565,215.73,215.68,0.5581355]
[1734509996642,7.88971939,215.73,215.68,0.5581355]
[1734509997318,7.24915439,215.72,215.68,0.5581355]
[1734509997517,0.640565,215.71,215.68,0.5581355]
[1734509998331,7.88971939,215.71,215.68,0.5581355]
[1734509998628,0.640565,215.71,215.68,0.5581355]
[1734510001136,7.24915439,215.69,215.68,0.5581355]
[1734510001445,7.88971939,215.69,215.68,0.5581355]
[1734510001635,7.24915439,215.69,215.68,0.5581355]
[1734510002648,31.02603839,215.69,215.68,0.5581355]
[1734510004556,31.66660339,215.69,215.68,0.5581355]
[1734510007144,23.776884,215.68,215.56,6.308]
[1734510007462,23.776884,215.68,215.56,13.55715439]
[1734510007463,7.24915439,215.63,215.56,13.55715439]
[1734510007631,0.640565,215.62,215.56,13.55715439]
[1734510007959,0.640565,215.62,215.57,0.12549]
[1734510008253,7.24915439,215.63,215.57,0.12549]
[1734510008458,23.776884,215.69,215.57,0.12549]
[1734510008459,7.88971939,215.62,215.57,0.12549]
[1734510008886,0.640565,215.62,215.57,0.12549]
[1734510009235,7.24915439,215.61,215.51,6.308]
[1734510009438,0.640565,215.6,215.53,7.24915439]
[1734510009637,0.640565,215.6,215.54,7.24915439]
[1734510010644,0.640565,215.6,215.55,0.12549]
[1734510011449,0.640565,215.6,215.55,7.24915439]
[1734510011638,7.88971939,215.62,215.52,0.12549]
[1734510011844,1.82173425,215.68,215.55,0.12549]
[1734510011845,7.88971939,215.61,215.55,0.12549]
[1734510012764,7.88971939,215.61,215.54,7.24915439]
[1734510012959,7.24915439,215.6,215.53,0.12549]
[1734510013166,0.640565,215.59,215.53,7.37464439]
[1734510014036,7.24915439,215.62,215.55,0.12549]
[1734510014238,7.88971939,215.65,215.58,7.24915439]
[1734510014455,7.24915439,215.66,215.59,7.37464439]
[1734510014764,0.640565,215.65,215.55,0.69580265]
[1734510014978,7.88971939,215.65,215.58,7.24915439]
[1734510015480,7.88971939,215.65,215.59,0.12549]
[1734510015963,7.24915439,215.64,215.57,7.24915439]
[1734510016145,0.640565,215.63,215.56,7.24915439]
[1734510017468,0.640565,215.63,215.58,0.12549]
[1734510020662,7.88971939,215.63,215.58,0.12549]
[1734510021154,7.88971939,215.63,215.57,0.12549]
[1734510021754,0.640565,215.63,215.58,0.12549]
[1734510021954,0.640565,215.63,215.58,7.37464439]
[1734510022176,0.640565,215.64,215.58,7.37464439]
[1734510022376,7.88971939,215.64,215.58,0.12549]
[1734510023099,0.640565,215.64,215.59,0.12549]
[1734510023260,30.65101756,215.71,215.59,0.12549]
[1734510023261,0.640565,215.7,215.63,0.12549]
[1734510023465,7.24915439,215.69,215.63,0.12549]
[1734510023677,7.88971939,215.69,215.63,0.12549]
[1734510024767,7.24915439,215.69,215.63,0.12549]
[1734510025595,0.640565,215.68,215.63,0.12549]
[1734510025750,7.88971939,215.68,215.62,0.12549]
[1734510026387,0.640565,215.68,215.62,7.37464439]
[1734510026687,0.640565,215.68,215.63,0.12549]
[1734510027170,7.88971939,215.68,215.62,0.12549]
[1734510027380,7.24915439,215.67,215.62,0.12549]
[1734510028289,7.24915439,215.68,215.61,0.12549]
[1734510028487,0.640565,215.67,215.61,0.12549]
[1734510029478,0.640565,215.7,215.62,7.37464439]
[1734510029671,7.24915439,215.69,215.62,7.37464439]
[1734510029872,7.88971939,215.69,215.62,7.37464439]
[1734510031262,7.24915439,215.66,215.58,20.0]
[1734510031466,7.24915439,215.64,215.56,7.24915439]
[1734510031670,7.88971939,215.63,215.56,7.24915439]
[1734510032279,7.88971939,215.63,215.54,6.3032]
[1734510032490,7.88971939,215.63,215.56,7.24915439]
[1734510032686,7.88971939,215.63,215.57,0.12549]
[1734510034790,0.640565,215.63,215.57,0.12549]
[1734510035099,0.640565,215.63,215.58,0.12549]
[1734510035898,0.640565,215.63,215.57,0.12549]
[1734510036574,7.24915439,215.62,215.55,7.24915439]
[1734510036771,0.640565,215.61,215.55,7.24915439]
[1734510037464,7.24915439,215.6,215.54,6.3032]
[1734510037669,0.640565,215.59,215.52,7.24915439]
[1734510038070,0.640565,215.59,215.51,1.5907]
[1734510038272,7.88971939,215.59,215.51,7.24915439]
[1734510038588,0.640565,215.59,215.53,0.12549]
[1734510038769,0.640565,215.59,215.52,7.24915439]
[1734510039179,7.24915439,215.54,215.46,2.0698355]
[1734510039389,0.640565,215.59,215.49,7.24915439]
[1734510039595,23.776884,215.61,215.54,0.12549]
[1734510039779,7.88971939,215.6,215.54,0.12549]
[1734510040093,7.24915439,215.61,215.56,0.12549]
[1734510041575,7.24915439,215.61,215.55,0.12549]
[1734510042400,7.24915439,215.58,215.52,6.3013]
[1734510042698,0.640565,215.57,215.52,6.3013]
[1734510042910,7.24915439,215.58,215.52,6.3013]
[1734510043218,0.640565,215.57,215.53,0.12549]
[1734510043397,7.88971939,215.57,215.52,6.3013]
[1734510043713,7.88971939,215.57,215.5,7.24915439]
[1734510044008,7.24915439,215.56,215.47,0.69596409]
[1734510044183,7.88971939,215.55,215.46,8.1640355]
[1734510044386,7.88971939,215.55,215.47,7.24915439]
[1734510044577,7.24915439,215.54,215.47,7.24915439]
[1734510044775,0.640565,215.53,215.47,7.24915439]
[1734510045281,7.88971939,215.53,215.46,15.41318989]
[1734510045479,7.88971939,215.53,215.46,13.90148989]